[Event "Titled Tuesday Blitz April 4 Early 2023"]
[White "Maxfan2008"]
[Black "Gold_Ocean"]
[WhiteElo "2434"]
[BlackElo "2643"]
[Result "0-1"]
[Round "05"]
[TimeControl "180+2"]
[Date "2023.04.04"]
[WhiteClock "0:02:06"]
[BlackClock "0:02:03"]

1. d4 {[%clk 0:03:00]}  Nf6 {[%clk 0:02:57]} 2. c4 {[%clk 0:03:01]}  e6 {[%clk 0:02:57]} 3. Nc3 {[%clk 0:03:01]}  Bb4 {[%clk 0:02:56]} 4. Nf3 {[%clk 0:03:02]}  O-O {[%clk 0:02:55]} 5. Bg5 {[%clk 0:03:01]}  h6 {[%clk 0:02:52]} 6. Bh4 {[%clk 0:03:01]}  d6 {[%clk 0:02:49]} 7. Qc2 {[%clk 0:02:57]}  Qe7 {[%clk 0:02:47]} 8. e4 {[%clk 0:02:55]}  g5 {[%clk 0:02:40]} 9. Nxg5 {[%clk 0:02:47]}  hxg5 {[%clk 0:02:39]} 10. Bxg5 {[%clk 0:02:48]}  e5 {[%clk 0:02:40]} 11. a3 {[%clk 0:02:35]}  Bxc3+ {[%clk 0:02:32]} 12. Qxc3 {[%clk 0:02:36]}  exd4 {[%clk 0:02:31]} 13. Qg3 {[%clk 0:02:27]}  Qxe4+ {[%clk 0:02:22]} 14. Be2 {[%clk 0:02:27]}  Nh5 {[%clk 0:02:11]} 15. Qb3 {[%clk 0:02:27]}  Re8 {[%clk 0:02:06]} 16. O-O {[%clk 0:02:06]}  Qxe2 {[%clk 0:02:03]} 0-1


[Site "https://www.chess.com"]

[Event "Titled Tuesday Blitz April 4 Early 2023"]
[White "Domingo Nunez, Alejandro"]
[Black "Meduri, Aakaash"]
[WhiteFideId "22245561"]
[BlackFideId "2032252"]
[WhiteElo "2291"]
[BlackElo "2113"]
[Result "1-0"]
[Round "05"]
[TimeControl "180+2"]
[Date "2023.04.04"]
[WhiteClock "0:00:10"]
[BlackClock "0:00:03"]

1. Nf3 {[%clk 0:03:00]}  d5 {[%clk 0:02:52]} 2. g3 {[%clk 0:03:00]}  g6 {[%clk 0:02:52]} 3. Bg2 {[%clk 0:03:00]}  Bg7 {[%clk 0:02:53]} 4. d4 {[%clk 0:03:01]}  Nc6 {[%clk 0:02:49]} 5. O-O {[%clk 0:03:02]}  Nf6 {[%clk 0:02:47]} 6. c4 {[%clk 0:03:00]}  dxc4 {[%clk 0:02:43]} 7. Nc3 {[%clk 0:02:59]}  O-O {[%clk 0:02:41]} 8. h3 {[%clk 0:02:30]}  Nd5 {[%clk 0:02:29]} 9. e4 {[%clk 0:02:29]}  Nxc3 {[%clk 0:02:26]} 10. bxc3 {[%clk 0:02:29]}  b5 {[%clk 0:02:19]} 11. Rb1 {[%clk 0:02:20]}  a6 {[%clk 0:02:18]} 12. a4 {[%clk 0:02:17]}  Rb8 {[%clk 0:02:18]} 13. Ba3 {[%clk 0:02:11]}  Re8 {[%clk 0:02:04]} 14. e5 {[%clk 0:02:10]}  Na5 {[%clk 0:02:02]} 15. Ng5 {[%clk 0:01:47]}  h6 {[%clk 0:01:50]} 16. Ne4 {[%clk 0:01:42]}  Nb3 {[%clk 0:01:50]} 17. axb5 {[%clk 0:01:29]}  axb5 {[%clk 0:01:49]} 18. Nc5 {[%clk 0:01:24]}  Nxc5 {[%clk 0:01:32]} 19. Bxc5 {[%clk 0:01:24]}  Bf5 {[%clk 0:01:26]} 20. Ra1 {[%clk 0:01:11]}  Qd7 {[%clk 0:01:03]} 21. g4 {[%clk 0:01:11]}  Be6 {[%clk 0:01:03]} 22. Ra7 {[%clk 0:01:09]}  Bd5 {[%clk 0:01:01]} 23. Bxd5 {[%clk 0:01:04]}  Qxd5 {[%clk 0:01:01]} 24. Rxc7 {[%clk 0:01:05]}  Rb7 {[%clk 0:00:39]} 25. Rxb7 {[%clk 0:00:54]}  Qxb7 {[%clk 0:00:40]} 26. Re1 {[%clk 0:00:39]}  Rd8 {[%clk 0:00:26]} 27. e6 {[%clk 0:00:27]}  f5 {[%clk 0:00:18]} 28. gxf5 {[%clk 0:00:27]}  gxf5 {[%clk 0:00:18]} 29. Qh5 {[%clk 0:00:28]}  Rf8 {[%clk 0:00:12]} 30. f4 {[%clk 0:00:24]}  Kh7 {[%clk 0:00:08]} 31. Kf2 {[%clk 0:00:20]}  Kh8 {[%clk 0:00:03]} 32. Qg6 {[%clk 0:00:16]}  Rf6 {[%clk 0:00:02]} 33. Qe8+ {[%clk 0:00:17]}  Kh7 {[%clk 0:00:02]} 34. Qh5 {[%clk 0:00:16]}  Qa6 {[%clk 0:00:02]} 35. Bxe7 {[%clk 0:00:12]}  Qa2+ {[%clk 0:00:02]} 36. Re2 {[%clk 0:00:12]}  Qb1 {[%clk 0:00:02]} 37. Bxf6 {[%clk 0:00:11]}  Bxf6 {[%clk 0:00:02]} 38. Qf7+ {[%clk 0:00:11]}  Bg7 {[%clk 0:00:03]} 39. e7 {[%clk 0:00:11]}  Qh1 {[%clk 0:00:03]} 40. Qxf5+ {[%clk 0:00:10]} 1-0


[Site "https://www.chess.com"]

[Event "Titled Tuesday Blitz April 4 Early 2023"]
[White "Omariev, Maksim"]
[Black "Fishchuk, Vladyslav"]
[WhiteFideId "4193423"]
[BlackFideId "34122117"]
[WhiteElo "2423"]
[BlackElo "2082"]
[Result "0-1"]
[Round "05"]
[TimeControl "180+2"]
[Date "2023.04.04"]
[WhiteClock "0:00:01"]
[BlackClock "0:00:30"]

1. g4 {[%clk 0:02:52]}  d5 {[%clk 0:02:57]} 2. Bg2 {[%clk 0:02:52]}  Bxg4 {[%clk 0:02:57]} 3. c4 {[%clk 0:02:51]}  c6 {[%clk 0:02:52]} 4. Qb3 {[%clk 0:02:51]}  Nf6 {[%clk 0:02:49]} 5. Qxb7 {[%clk 0:02:48]}  Nbd7 {[%clk 0:02:50]} 6. Nc3 {[%clk 0:02:42]}  e6 {[%clk 0:02:42]} 7. d3 {[%clk 0:02:37]}  Be7 {[%clk 0:02:25]} 8. Nf3 {[%clk 0:02:35]}  O-O {[%clk 0:02:19]} 9. Bf4 {[%clk 0:01:45]}  Nc5 {[%clk 0:02:08]} 10. Qxc6 {[%clk 0:01:45]}  Rc8 {[%clk 0:02:06]} 11. cxd5 {[%clk 0:01:09]}  exd5 {[%clk 0:01:49]} 12. Ne5 {[%clk 0:00:56]}  Rxc6 {[%clk 0:01:43]} 13. Nxc6 {[%clk 0:00:57]}  Qd7 {[%clk 0:01:41]} 14. Nxe7+ {[%clk 0:00:55]}  Qxe7 {[%clk 0:01:42]} 15. O-O {[%clk 0:00:55]}  d4 {[%clk 0:01:37]} 16. Nb5 {[%clk 0:00:53]}  Qxe2 {[%clk 0:01:33]} 17. Bd6 {[%clk 0:00:41]}  Nxd3 {[%clk 0:01:00]} 18. Nxd4 {[%clk 0:00:30]}  Qxb2 {[%clk 0:00:46]} 19. Bxf8 {[%clk 0:00:29]}  Kxf8 {[%clk 0:00:46]} 20. Nc6 {[%clk 0:00:26]}  Qd2 {[%clk 0:00:42]} 21. Rab1 {[%clk 0:00:11]}  g6 {[%clk 0:00:42]} 22. Rb8+ {[%clk 0:00:08]}  Kg7 {[%clk 0:00:41]} 23. Rd8 {[%clk 0:00:09]}  Be2 {[%clk 0:00:33]} 24. Rb1 {[%clk 0:00:05]}  Bd1 {[%clk 0:00:30]} 25. Kf1 {[%clk 0:00:01]}  Qxf2# {[%clk 0:00:30]} 0-1


[Site "https://www.chess.com"]

[Event "Titled Tuesday Blitz April 4 Early 2023"]
[White "Volkov, Maksim"]
[Black "Chandreyee, Hajra"]
[WhiteFideId "54123070"]
[BlackFideId "5056535"]
[WhiteElo "2312"]
[BlackElo "1725"]
[Result "0-1"]
[Round "05"]
[TimeControl "180+2"]
[Date "2023.04.04"]
[WhiteClock "0:00:01"]
[BlackClock "0:00:12"]

1. d4 {[%clk 0:03:00]}  e6 {[%clk 0:02:24]} 2. c4 {[%clk 0:03:00]}  f5 {[%clk 0:02:24]} 3. Nf3 {[%clk 0:02:59]}  Nf6 {[%clk 0:02:24]} 4. g3 {[%clk 0:02:59]}  Be7 {[%clk 0:02:24]} 5. Bg2 {[%clk 0:02:59]}  O-O {[%clk 0:02:24]} 6. O-O {[%clk 0:02:59]}  d6 {[%clk 0:02:22]} 7. Nc3 {[%clk 0:02:54]}  Ne4 {[%clk 0:02:21]} 8. Qc2 {[%clk 0:02:47]}  Nxc3 {[%clk 0:02:20]} 9. Qxc3 {[%clk 0:02:48]}  Nc6 {[%clk 0:02:20]} 10. d5 {[%clk 0:02:33]}  Bf6 {[%clk 0:02:20]} 11. Qc2 {[%clk 0:02:21]}  Nb4 {[%clk 0:02:19]} 12. Qd2 {[%clk 0:02:11]}  a5 {[%clk 0:02:18]} 13. a3 {[%clk 0:02:11]}  Na6 {[%clk 0:02:18]} 14. Qxa5 {[%clk 0:02:09]}  b6 {[%clk 0:02:14]} 15. Qd2 {[%clk 0:02:07]}  Nc5 {[%clk 0:02:14]} 16. Qc2 {[%clk 0:02:05]}  e5 {[%clk 0:02:14]} 17. Be3 {[%clk 0:01:52]}  f4 {[%clk 0:01:53]} 18. Bxc5 {[%clk 0:01:39]}  bxc5 {[%clk 0:01:52]} 19. Nd2 {[%clk 0:01:39]}  Qe8 {[%clk 0:01:48]} 20. Ne4 {[%clk 0:01:36]}  Qh5 {[%clk 0:01:48]} 21. Bf3 {[%clk 0:01:31]}  Qh6 {[%clk 0:01:33]} 22. Rfb1 {[%clk 0:01:17]}  g5 {[%clk 0:01:18]} 23. Bg2 {[%clk 0:01:10]}  g4 {[%clk 0:01:11]} 24. Qd2 {[%clk 0:00:57]}  Be7 {[%clk 0:01:02]} 25. Nxc5 {[%clk 0:00:47]}  Rf5 {[%clk 0:00:38]} 26. Ne6 {[%clk 0:00:34]}  Rh5 {[%clk 0:00:36]} 27. gxf4 {[%clk 0:00:31]}  Rxh2 {[%clk 0:00:34]} 28. Qd3 {[%clk 0:00:26]}  exf4 {[%clk 0:00:21]} 29. Re1 {[%clk 0:00:18]}  Bxe6 {[%clk 0:00:17]} 30. dxe6 {[%clk 0:00:18]}  Ra5 {[%clk 0:00:18]} 31. Qe4 {[%clk 0:00:13]}  Rah5 {[%clk 0:00:17]} 32. Rad1 {[%clk 0:00:10]}  f3 {[%clk 0:00:17]} 33. Qxg4+ {[%clk 0:00:05]}  Rg5 {[%clk 0:00:16]} 34. Qxf3 {[%clk 0:00:05]}  Rgxg2+ {[%clk 0:00:16]} 35. Qxg2+ {[%clk 0:00:06]}  Rxg2+ {[%clk 0:00:15]} 36. Kxg2 {[%clk 0:00:07]}  Qxe6 {[%clk 0:00:14]} 37. Rd3 {[%clk 0:00:05]}  Qxc4 {[%clk 0:00:14]} 38. Rg3+ {[%clk 0:00:06]}  Kf7 {[%clk 0:00:15]} 39. e3 {[%clk 0:00:03]}  Qc2 {[%clk 0:00:15]} 40. b4 {[%clk 0:00:01]}  Ke6 {[%clk 0:00:15]} 41. Rh1 {[%clk 0:00:01]}  Qe4+ {[%clk 0:00:13]} 42. Rf3 {[%clk 0:00:02]}  Bg5 {[%clk 0:00:12]} 43. Rh5 {[%clk 0:00:02]}  h6 {[%clk 0:00:12]} 44. Rh1 {[%clk 0:00:01]}  Qa8 {[%clk 0:00:12]} 45. Rd1 {[%clk 0:00:01]}  Qxa3 {[%clk 0:00:12]} 46. b5 {[%clk 0:00:02]}  Qb4 {[%clk 0:00:12]} 47. Rd4 {[%clk 0:00:01]}  Qxb5 {[%clk 0:00:12]} 48. Re4+ {[%clk 0:00:02]}  Kd7 {[%clk 0:00:12]} 49. Rf8 {[%clk 0:00:02]}  Qd5 {[%clk 0:00:12]} 50. Kf3 {[%clk 0:00:02]}  c5 {[%clk 0:00:12]} 51. Re8 {[%clk 0:00:01]}  c4 {[%clk 0:00:12]} 52. Ke2 {[%clk 0:00:02]}  Qd3+ {[%clk 0:00:11]} 53. Kf3 {[%clk 0:00:02]}  Qd1+ {[%clk 0:00:12]} 54. Kg2 {[%clk 0:00:01]}  c3 {[%clk 0:00:12]} 55. Rg8 {[%clk 0:00:01]}  c2 {[%clk 0:00:12]} 56. Rg7+ {[%clk 0:00:01]}  Kc6 {[%clk 0:00:12]} 57. Rc4+ {[%clk 0:00:01]}  Kd5 {[%clk 0:00:12]} 58. Rgc7 {[%clk 0:00:02]}  Qd3 {[%clk 0:00:09]} 59. Rxc2 {[%clk 0:00:03]}  Qe4+ {[%clk 0:00:10]} 60. Kf1 {[%clk 0:00:03]}  Qh1+ {[%clk 0:00:10]} 61. Ke2 {[%clk 0:00:04]}  Ke6 {[%clk 0:00:10]} 62. Rc8 {[%clk 0:00:03]}  h5 {[%clk 0:00:11]} 63. Re8+ {[%clk 0:00:04]}  Kf7 {[%clk 0:00:10]} 64. Rcc8 {[%clk 0:00:01]}  Qd5 {[%clk 0:00:10]} 65. Rf8+ {[%clk 0:00:02]}  Ke6 {[%clk 0:00:11]} 66. Rfe8+ {[%clk 0:00:02]}  Kf5 {[%clk 0:00:11]} 67. Rf8+ {[%clk 0:00:02]}  Kg4 {[%clk 0:00:11]} 68. Rc2 {[%clk 0:00:01]}  Qb5+ {[%clk 0:00:11]} 69. Ke1 {[%clk 0:00:01]}  Qb4+ {[%clk 0:00:11]} 70. Kf1 {[%clk 0:00:01]}  d5 {[%clk 0:00:12]} 71. Kg2 {[%clk 0:00:01]}  Qxf8 {[%clk 0:00:12]} 72. f3+ {[%clk 0:00:01]}  Qxf3+ {[%clk 0:00:12]} 0-1


[Site "https://www.chess.com"]

[Event "Titled Tuesday Blitz April 4 Early 2023"]
[White "Ambartsumova, Karina"]
[Black "Mohammed, Zozek Salah Mohammed"]
[WhiteFideId "4166299"]
[BlackFideId "4803361"]
[WhiteElo "2240"]
[BlackElo "2211"]
[Result "1-0"]
[Round "05"]
[TimeControl "180+2"]
[Date "2023.04.04"]
[WhiteClock "0:00:12"]
[BlackClock "0:00:14"]

1. e4 {[%clk 0:02:47]}  e6 {[%clk 0:02:59]} 2. d4 {[%clk 0:02:37]}  d5 {[%clk 0:02:59]} 3. Nc3 {[%clk 0:02:37]}  Nf6 {[%clk 0:02:58]} 4. e5 {[%clk 0:02:37]}  Nfd7 {[%clk 0:02:58]} 5. f4 {[%clk 0:02:37]}  c5 {[%clk 0:02:58]} 6. Be3 {[%clk 0:02:38]}  Nc6 {[%clk 0:02:58]} 7. Nf3 {[%clk 0:02:38]}  a6 {[%clk 0:02:58]} 8. Qd2 {[%clk 0:02:32]}  b5 {[%clk 0:02:56]} 9. a3 {[%clk 0:02:24]}  Qb6 {[%clk 0:02:51]} 10. Be2 {[%clk 0:02:17]}  cxd4 {[%clk 0:02:49]} 11. Nxd4 {[%clk 0:02:17]}  Bc5 {[%clk 0:02:43]} 12. Rd1 {[%clk 0:02:16]}  Bb7 {[%clk 0:02:39]} 13. O-O {[%clk 0:02:10]}  Nxd4 {[%clk 0:02:39]} 14. Bxd4 {[%clk 0:02:09]}  Bxd4+ {[%clk 0:02:40]} 15. Qxd4 {[%clk 0:02:09]}  Qxd4+ {[%clk 0:02:40]} 16. Rxd4 {[%clk 0:02:10]}  Nc5 {[%clk 0:02:39]} 17. Bf3 {[%clk 0:01:53]}  O-O {[%clk 0:02:35]} 18. f5 {[%clk 0:01:44]}  Rac8 {[%clk 0:02:24]} 19. Bg4 {[%clk 0:01:32]}  Rfe8 {[%clk 0:02:16]} 20. f6 {[%clk 0:01:19]}  g6 {[%clk 0:02:08]} 21. h4 {[%clk 0:01:17]}  Nd7 {[%clk 0:02:07]} 22. Re1 {[%clk 0:01:16]}  Rc4 {[%clk 0:02:08]} 23. Rxc4 {[%clk 0:00:59]}  dxc4 {[%clk 0:02:05]} 24. Bf3 {[%clk 0:00:54]}  Bxf3 {[%clk 0:01:59]} 25. gxf3 {[%clk 0:00:54]}  Kf8 {[%clk 0:01:47]} 26. f4 {[%clk 0:00:52]}  Nb6 {[%clk 0:01:46]} 27. Rd1 {[%clk 0:00:50]}  Rb8 {[%clk 0:01:33]} 28. Rd6 {[%clk 0:00:48]}  Ke8 {[%clk 0:01:31]} 29. Kf2 {[%clk 0:00:46]}  h6 {[%clk 0:01:21]} 30. Kf3 {[%clk 0:00:35]}  Rb7 {[%clk 0:01:07]} 31. Ke4 {[%clk 0:00:34]}  Rb8 {[%clk 0:01:06]} 32. Kd4 {[%clk 0:00:19]}  Rd8 {[%clk 0:00:41]} 33. Kc5 {[%clk 0:00:18]}  Nd7+ {[%clk 0:00:24]} 34. Kb4 {[%clk 0:00:18]}  Ra8 {[%clk 0:00:20]} 35. Ka5 {[%clk 0:00:17]}  Nc5 {[%clk 0:00:20]} 36. Kb6 {[%clk 0:00:14]}  Nd7+ {[%clk 0:00:18]} 37. Kb7 {[%clk 0:00:13]}  Rd8 {[%clk 0:00:15]} 38. Kxa6 {[%clk 0:00:11]}  Nc5+ {[%clk 0:00:15]} 39. Kxb5 {[%clk 0:00:12]}  Rxd6 {[%clk 0:00:14]} 40. exd6 {[%clk 0:00:13]}  Nb7 {[%clk 0:00:14]} 41. Kc6 {[%clk 0:00:12]} 1-0


[Site "https://www.chess.com"]

[Event "Titled Tuesday Blitz April 4 Early 2023"]
[White "Silva Lucena, Cristian"]
[Black "Sielecki, Christof"]
[WhiteFideId "2232588"]
[BlackFideId "4620437"]
[WhiteElo "2223"]
[BlackElo "2443"]
[Result "0-1"]
[Round "05"]
[TimeControl "180+2"]
[Date "2023.04.04"]
[WhiteClock "0:00:23"]
[BlackClock "0:00:17"]

1. Nf3 {[%clk 0:03:00]}  d5 {[%clk 0:02:58]} 2. e3 {[%clk 0:03:00]}  Nf6 {[%clk 0:02:57]} 3. c4 {[%clk 0:03:00]}  e6 {[%clk 0:02:57]} 4. d4 {[%clk 0:02:59]}  Nbd7 {[%clk 0:02:46]} 5. Be2 {[%clk 0:02:59]}  a6 {[%clk 0:02:44]} 6. O-O {[%clk 0:02:52]}  dxc4 {[%clk 0:02:45]} 7. Bxc4 {[%clk 0:02:53]}  b5 {[%clk 0:02:45]} 8. Be2 {[%clk 0:02:54]}  Bb7 {[%clk 0:02:45]} 9. a4 {[%clk 0:02:49]}  bxa4 {[%clk 0:02:41]} 10. Qxa4 {[%clk 0:02:43]}  c5 {[%clk 0:02:40]} 11. dxc5 {[%clk 0:02:32]}  Bxc5 {[%clk 0:02:38]} 12. b4 {[%clk 0:02:32]}  Be7 {[%clk 0:02:34]} 13. Ne5 {[%clk 0:02:31]}  O-O {[%clk 0:02:32]} 14. Nxd7 {[%clk 0:02:25]}  Qxd7 {[%clk 0:02:27]} 15. Qxd7 {[%clk 0:02:22]}  Nxd7 {[%clk 0:02:28]} 16. Bb2 {[%clk 0:02:21]}  Bxb4 {[%clk 0:02:24]} 17. Nc3 {[%clk 0:02:16]}  Nf6 {[%clk 0:02:18]} 18. Na4 {[%clk 0:02:06]}  Nd5 {[%clk 0:02:14]} 19. Bf3 {[%clk 0:01:58]}  a5 {[%clk 0:02:14]} 20. Rfc1 {[%clk 0:01:42]}  Rac8 {[%clk 0:02:13]} 21. h4 {[%clk 0:01:40]}  Rxc1+ {[%clk 0:02:06]} 22. Rxc1 {[%clk 0:01:39]}  Rc8 {[%clk 0:02:06]} 23. Rxc8+ {[%clk 0:01:13]}  Bxc8 {[%clk 0:02:07]} 24. Bxd5 {[%clk 0:01:06]}  exd5 {[%clk 0:02:06]} 25. Nb6 {[%clk 0:01:07]}  Bb7 {[%clk 0:01:51]} 26. Kf1 {[%clk 0:01:02]}  f6 {[%clk 0:01:48]} 27. Ke2 {[%clk 0:00:58]}  Kf7 {[%clk 0:01:46]} 28. h5 {[%clk 0:00:59]}  Ke6 {[%clk 0:01:45]} 29. Kd3 {[%clk 0:00:50]}  Bc6 {[%clk 0:01:45]} 30. g4 {[%clk 0:00:48]}  a4 {[%clk 0:01:38]} 31. f4 {[%clk 0:00:44]}  h6 {[%clk 0:01:34]} 32. g5 {[%clk 0:00:40]}  hxg5 {[%clk 0:01:30]} 33. fxg5 {[%clk 0:00:40]}  Bb5+ {[%clk 0:01:24]} 34. Kc2 {[%clk 0:00:34]}  fxg5 {[%clk 0:01:16]} 35. Bxg7 {[%clk 0:00:32]}  Be8 {[%clk 0:00:58]} 36. h6 {[%clk 0:00:23]}  Bg6+ {[%clk 0:00:56]} 37. Kb2 {[%clk 0:00:23]}  a3+ {[%clk 0:00:54]} 38. Kb3 {[%clk 0:00:20]}  Bc5 {[%clk 0:00:54]} 39. Na4 {[%clk 0:00:20]}  Bxe3 {[%clk 0:00:47]} 40. Kxa3 {[%clk 0:00:21]}  g4 {[%clk 0:00:47]} 41. Nc3 {[%clk 0:00:21]}  g3 {[%clk 0:00:44]} 42. Ne2 {[%clk 0:00:21]}  g2 {[%clk 0:00:42]} 43. Kb3 {[%clk 0:00:21]}  g1=Q {[%clk 0:00:41]} 44. Nxg1 {[%clk 0:00:21]}  Bxg1 {[%clk 0:00:41]} 45. Kc3 {[%clk 0:00:21]}  Bc5 {[%clk 0:00:39]} 46. Kb3 {[%clk 0:00:18]}  Kf5 {[%clk 0:00:31]} 47. Kc3 {[%clk 0:00:17]}  Ke4 {[%clk 0:00:30]} 48. Kb3 {[%clk 0:00:16]}  Be3 {[%clk 0:00:29]} 49. Kc3 {[%clk 0:00:15]}  d4+ {[%clk 0:00:29]} 50. Bxd4 {[%clk 0:00:15]}  Bxd4+ {[%clk 0:00:29]} 51. Kc4 {[%clk 0:00:16]}  Bf6 {[%clk 0:00:29]} 52. Kc5 {[%clk 0:00:16]}  Kf5 {[%clk 0:00:30]} 53. Kd6 {[%clk 0:00:17]}  Kg5 {[%clk 0:00:30]} 54. Ke6 {[%clk 0:00:17]}  Bc3 {[%clk 0:00:26]} 55. Kd5 {[%clk 0:00:17]}  Kxh6 {[%clk 0:00:26]} 56. Ke6 {[%clk 0:00:18]}  Kg5 {[%clk 0:00:26]} 57. Kd5 {[%clk 0:00:19]}  Bf5 {[%clk 0:00:25]} 58. Kd6 {[%clk 0:00:19]}  Kf4 {[%clk 0:00:25]} 59. Kd5 {[%clk 0:00:19]}  Be5 {[%clk 0:00:24]} 60. Kc6 {[%clk 0:00:19]}  Ke4 {[%clk 0:00:24]} 61. Kb7 {[%clk 0:00:20]}  Kd5 {[%clk 0:00:24]} 62. Kb6 {[%clk 0:00:20]}  Bd6 {[%clk 0:00:24]} 63. Kb5 {[%clk 0:00:21]}  Bd7+ {[%clk 0:00:23]} 64. Ka5 {[%clk 0:00:21]}  Kc5 {[%clk 0:00:20]} 65. Ka6 {[%clk 0:00:22]}  Bc6 {[%clk 0:00:20]} 66. Ka5 {[%clk 0:00:22]}  Bc7+ {[%clk 0:00:20]} 67. Ka6 {[%clk 0:00:22]}  Kb4 {[%clk 0:00:16]} 68. Ka7 {[%clk 0:00:22]}  Be5 {[%clk 0:00:16]} 69. Kb6 {[%clk 0:00:22]}  Bd5 {[%clk 0:00:16]} 70. Ka6 {[%clk 0:00:22]}  Ka4 {[%clk 0:00:16]} 71. Kb6 {[%clk 0:00:22]}  Bd6 {[%clk 0:00:16]} 72. Ka6 {[%clk 0:00:22]}  Be4 {[%clk 0:00:14]} 73. Kb6 {[%clk 0:00:22]}  Kb4 {[%clk 0:00:14]} 74. Ka6 {[%clk 0:00:21]}  Be5 {[%clk 0:00:13]} 75. Kb6 {[%clk 0:00:22]}  Bd3 {[%clk 0:00:13]} 76. Kc6 {[%clk 0:00:22]}  Bc4 {[%clk 0:00:13]} 77. Kd7 {[%clk 0:00:21]}  Kc5 {[%clk 0:00:14]} 78. Ke7 {[%clk 0:00:22]}  Bd5 {[%clk 0:00:14]} 79. Kd7 {[%clk 0:00:22]}  Bf6 {[%clk 0:00:15]} 80. Kc7 {[%clk 0:00:21]}  Bc6 {[%clk 0:00:16]} 81. Kb8 {[%clk 0:00:21]}  Kb6 {[%clk 0:00:16]} 82. Kc8 {[%clk 0:00:21]}  Bb5 {[%clk 0:00:16]} 83. Kb8 {[%clk 0:00:21]}  Bd7 {[%clk 0:00:15]} 84. Ka8 {[%clk 0:00:21]}  Be7 {[%clk 0:00:16]} 85. Kb8 {[%clk 0:00:22]}  Bd6+ {[%clk 0:00:16]} 86. Ka8 {[%clk 0:00:23]}  Bc6# {[%clk 0:00:17]} 0-1


[Site "https://www.chess.com"]

[Event "Titled Tuesday Blitz April 4 Early 2023"]
[White "Souleidis, Georgios"]
[Black "Rizzo, Tobias"]
[WhiteFideId "4206827"]
[BlackFideId "30942691"]
[WhiteElo "2401"]
[BlackElo "2415"]
[Result "1-0"]
[Round "05"]
[TimeControl "180+2"]
[Date "2023.04.04"]
[WhiteClock "0:00:52"]
[BlackClock "0:00:23"]

1. e4 {[%clk 0:03:00]}  c5 {[%clk 0:02:59]} 2. Be2 {[%clk 0:03:00]}  Nc6 {[%clk 0:02:56]} 3. d3 {[%clk 0:02:59]}  g6 {[%clk 0:02:54]} 4. f4 {[%clk 0:02:59]}  Bg7 {[%clk 0:02:54]} 5. Nf3 {[%clk 0:03:00]}  e6 {[%clk 0:02:53]} 6. O-O {[%clk 0:03:00]}  Nge7 {[%clk 0:02:53]} 7. c3 {[%clk 0:03:00]}  d6 {[%clk 0:02:52]} 8. Be3 {[%clk 0:03:00]}  O-O {[%clk 0:02:52]} 9. d4 {[%clk 0:03:00]}  cxd4 {[%clk 0:02:50]} 10. cxd4 {[%clk 0:03:01]}  d5 {[%clk 0:02:51]} 11. e5 {[%clk 0:03:01]}  Qb6 {[%clk 0:02:50]} 12. Qd2 {[%clk 0:03:01]}  Bd7 {[%clk 0:02:43]} 13. Nc3 {[%clk 0:03:01]}  Na5 {[%clk 0:02:19]} 14. b3 {[%clk 0:03:00]}  Rfc8 {[%clk 0:02:13]} 15. Rac1 {[%clk 0:02:59]}  Bf8 {[%clk 0:02:11]} 16. g4 {[%clk 0:02:57]}  Nec6 {[%clk 0:02:06]} 17. Na4 {[%clk 0:02:57]}  Qd8 {[%clk 0:02:03]} 18. Nc5 {[%clk 0:02:55]}  b6 {[%clk 0:01:59]} 19. Na6 {[%clk 0:02:31]}  Nb7 {[%clk 0:01:45]} 20. Bf2 {[%clk 0:02:21]}  Qe8 {[%clk 0:01:43]} 21. Bh4 {[%clk 0:02:16]}  Bg7 {[%clk 0:01:42]} 22. Bd3 {[%clk 0:02:13]}  Qf8 {[%clk 0:01:27]} 23. Bf6 {[%clk 0:02:04]}  Bxf6 {[%clk 0:01:23]} 24. exf6 {[%clk 0:02:04]}  Nd6 {[%clk 0:01:22]} 25. Qe3 {[%clk 0:01:56]}  Qd8 {[%clk 0:01:22]} 26. g5 {[%clk 0:01:54]}  Nf5 {[%clk 0:01:05]} 27. Bxf5 {[%clk 0:01:53]}  exf5 {[%clk 0:01:06]} 28. Rfe1 {[%clk 0:01:37]}  Be6 {[%clk 0:01:06]} 29. Ne5 {[%clk 0:01:28]}  Nxe5 {[%clk 0:01:02]} 30. Qxe5 {[%clk 0:01:29]}  Qf8 {[%clk 0:00:50]} 31. Nc7 {[%clk 0:01:23]}  Rab8 {[%clk 0:00:47]} 32. Nxe6 {[%clk 0:01:20]}  fxe6 {[%clk 0:00:47]} 33. Qxe6+ {[%clk 0:01:21]}  Kh8 {[%clk 0:00:48]} 34. Rxc8 {[%clk 0:01:14]}  Rxc8 {[%clk 0:00:48]} 35. Qxd5 {[%clk 0:00:59]}  Rd8 {[%clk 0:00:40]} 36. Qe5 {[%clk 0:00:56]}  Qf7 {[%clk 0:00:38]} 37. Qe7 {[%clk 0:00:53]}  Qd5 {[%clk 0:00:23]} 38. Qg7# {[%clk 0:00:52]} 1-0


[Site "https://www.chess.com"]

[Event "Titled Tuesday Blitz April 4 Early 2023"]
[White "Hnydiuk, Aleksander"]
[Black "Rios Escobar, Adan"]
[WhiteFideId "1109057"]
[BlackFideId "3403645"]
[WhiteElo "2374"]
[BlackElo "2412"]
[Result "1-0"]
[Round "05"]
[TimeControl "180+2"]
[Date "2023.04.04"]
[WhiteClock "0:00:18"]
[BlackClock "0:00:02"]

1. Nf3 {[%clk 0:03:00]}  Nf6 {[%clk 0:02:50]} 2. c4 {[%clk 0:03:00]}  g6 {[%clk 0:02:50]} 3. g3 {[%clk 0:03:00]}  c5 {[%clk 0:02:48]} 4. Bg2 {[%clk 0:02:59]}  Bg7 {[%clk 0:02:46]} 5. d4 {[%clk 0:02:59]}  cxd4 {[%clk 0:02:44]} 6. Nxd4 {[%clk 0:03:00]}  O-O {[%clk 0:02:44]} 7. Nc3 {[%clk 0:03:00]}  Nc6 {[%clk 0:02:43]} 8. O-O {[%clk 0:03:00]}  Qa5 {[%clk 0:02:42]} 9. e3 {[%clk 0:02:53]}  d6 {[%clk 0:02:40]} 10. Bd2 {[%clk 0:02:46]}  Bg4 {[%clk 0:02:38]} 11. f3 {[%clk 0:02:44]}  Bd7 {[%clk 0:02:36]} 12. Nd5 {[%clk 0:02:38]}  Qd8 {[%clk 0:02:34]} 13. Bc3 {[%clk 0:02:33]}  Rc8 {[%clk 0:02:22]} 14. Rc1 {[%clk 0:02:14]}  Nxd5 {[%clk 0:02:20]} 15. cxd5 {[%clk 0:02:13]}  Nxd4 {[%clk 0:02:20]} 16. Bxd4 {[%clk 0:02:13]}  Rxc1 {[%clk 0:02:20]} 17. Qxc1 {[%clk 0:02:13]}  Bxd4 {[%clk 0:02:20]} 18. exd4 {[%clk 0:02:14]}  Qb6 {[%clk 0:02:20]} 19. Qd2 {[%clk 0:02:11]}  Rc8 {[%clk 0:02:18]} 20. Rd1 {[%clk 0:02:01]}  Rc4 {[%clk 0:02:13]} 21. Bf1 {[%clk 0:01:58]}  Rb4 {[%clk 0:02:01]} 22. b3 {[%clk 0:01:56]}  Qa5 {[%clk 0:01:44]} 23. Re1 {[%clk 0:01:46]}  Qb6 {[%clk 0:01:20]} 24. Bc4 {[%clk 0:01:37]}  e5 {[%clk 0:01:08]} 25. dxe6 {[%clk 0:01:26]}  Bxe6 {[%clk 0:01:08]} 26. a3 {[%clk 0:01:23]}  Rxb3 {[%clk 0:00:52]} 27. Bxb3 {[%clk 0:01:15]}  Qxb3 {[%clk 0:00:53]} 28. Re3 {[%clk 0:01:05]}  Qb1+ {[%clk 0:00:48]} 29. Kg2 {[%clk 0:01:04]}  Bd5 {[%clk 0:00:38]} 30. h4 {[%clk 0:01:00]}  h5 {[%clk 0:00:30]} 31. Re1 {[%clk 0:00:46]}  Qf5 {[%clk 0:00:29]} 32. Qe3 {[%clk 0:00:32]}  Kg7 {[%clk 0:00:26]} 33. Re2 {[%clk 0:00:31]}  a6 {[%clk 0:00:24]} 34. Rd2 {[%clk 0:00:31]}  Be6 {[%clk 0:00:19]} 35. Qf4 {[%clk 0:00:27]}  Qb1 {[%clk 0:00:14]} 36. Qxd6 {[%clk 0:00:23]}  Qb3 {[%clk 0:00:04]} 37. Qe5+ {[%clk 0:00:21]}  Kh7 {[%clk 0:00:03]} 38. d5 {[%clk 0:00:20]}  Bf5 {[%clk 0:00:02]} 39. d6 {[%clk 0:00:18]} 1-0


[Site "https://www.chess.com"]